Cogmind - Beta 14 @@@ ROGUE MODE // 2024.11.02 @ 19:47:27 Player: Kate+Gabe4evr Result: Destroyed by 7C-BKH(R) with Subdweller Machine Gun Performance ------------- Evolutions (0) 0 Regions Visited (2) 400 Robots Destroyed (15) 75 Value Destroyed (467) 467 Prototype IDs (0) 0 Alien Tech Used (0) 0 Bonus (0) 0 TOTAL SCORE: 942 Bonus ------- None Cogmind --------- Core Integrity 0/250 Matter 121/300 Energy 250/250 System Corruption 2% Temperature Cool (0) Movement Rolling (125) Ox3 Location -10/Subcaves Parts ------- > --- POWER (1) -------- Ion Engine > --- PROPULSION (2) --- Wheel > --- UTILITY (2) ------ Large Storage Unit Improved Targeting Computer > --- WEAPON (2) ------- Subdweller Machine Gun Barrage Gun > --- INVENTORY (15) --- Makeshift Light Armor Plating Medium Laser Particle Gun Spread Laser Spread Laser Spread Laser Subdweller Beam Cannon Light Assault Rifle Heavy Assault Rifle Heavy Assault Rifle Heavy Assault Rifle Subdweller Machine Gun Light Cannon Subdweller Shrapnel Launcher Peak State ------------ > --- POWER ------------ Ion Engine > --- PROPULSION ------- Wheel > --- UTILITY ---------- Large Storage Unit Improved Targeting Computer > --- WEAPON ----------- Heavy Assault Rifle Barrage Gun > --- INVENTORY -------- Makeshift Light Armor Plating Medium Laser Particle Gun Spread Laser Spread Laser Spread Laser Subdweller Beam Cannon Light Assault Rifle Heavy Assault Rifle Heavy Assault Rifle Subdweller Machine Gun Subdweller Machine Gun Light Cannon Subdweller Shrapnel Launcher [Rating: 12] Favorites ----------- Power Ion Engine Engine Ion Engine Propulsion Wheel Wheel Wheel Utility Improved Targeting Computer Storage Large Storage Unit Processor Improved Targeting Computer Weapon Medium Laser Energy Gun Medium Laser Ballistic Gun Barrage Gun Build | -11 -10 -10 ------- Run | Yrd Mat Sub Slots Evolved . | . . . Power . | . . . Propulsion . | . . . Utility . | . . . Weapon . | . . . Parts Attached 23 | 6 10 7 Power 2 | 1 1 . Engine 2 | 1 1 . Core . | . . . Reactor . | . . . Propulsion 5 | 2 2 1 Treads . | . . . Leg . | . . . Wheel 5 | 2 2 1 Hover . | . . . Flight . | . . . Utility 3 | 1 2 . Device . | . . . Storage 2 | 1 1 . Processor 1 | . 1 . Hackware . | . . . Protection . | . . . Artifact . | . . . Weapon 13 | 2 5 6 Energy Gun 6 | 2 3 1 Energy Cannon . | . . . Ballistic Gun 7 | . 2 5 Ballistic Cannon . | . . . Launcher . | . . . Special Weapon . | . . . Impact Weapon . | . . . Slashing Weapon . | . . . Piercing Weapon . | . . . Special Melee Weapon . | . . . Unidentified Prototypes . | . . . Parts Lost 4 | . 2 2 Power 1 | . 1 . Propulsion 3 | . 1 2 Utility . | . . . Weapon . | . . . Highest Loss Streak 2 | . 2 1 To Critical Strikes . | . . . Average Slot Usage (%) 89 | . 95 86 Engine 14 | . 14 14 Wheel 19 | . 26 16 Storage 14 | . 14 14 Processor 12 | . 10 14 Energy Gun 11 | . 17 8 Ballistic Gun 15 | . 10 18 Peak Build Rating 12 | 6 10 12 Average Rating 10 | 4 8 11 On Entrance 5 | . 6 10 Naked Turns . | . . . Heaviest Build 32 | 14 30 32 Greatest Support 20 | 20 20 20 Greatest Overweight (x) 3 | . 1 3 Average Overweight (x) 1 | . . 2 Largest Inventory Capacity 15 | 8 15 15 Average Capacity 13 | 7 10 15 Most Carried 15 | 2 10 15 Average Carried 10 | . 7 13 Final Capacity 15 | 8 15 15 Final Carried 14 | 2 10 14 Class Distribution -------------------- 100% | Mutant Dominant Class ---------------- Mutant | -10/Materials Mutant | -10/Subcaves Resources | -11 -10 -10 ----------- Run | Yrd Mat Sub Matter Collected 642 | 227 106 309 Remotely . | . . . Salvage Created 523 | . 251 272 Parts 27 | . 13 14 Haulers Intercepted . | . . . Recyclers Shooed . | . . . Parts Field Recycled . | . . . Retrieved Matter . | . . . Parts Self-Destructed 2 | . . 2 Prevented . | . . . Kills | -11 -10 -10 ------- Run | Yrd Mat Sub Combat Hostiles Destroyed 14 | . 8 6 Guns 14 | . 8 6 Classes Destroyed 4 | . 3 1 Worker 1 | . 1 . Swarmer 3 | . 3 . Grunt 5 | . 5 . Subdweller 6 | . . 6 Best Kill Streak 3 | . 3 2 Combat Bots Only 3 | . 3 2 Max Kills in Single Turn 1 | . 1 1 Gunslinging . | . . . Exploded . | . . . Melee . | . . . Uniques/NPCs Destroyed . | . . . Combat | -11 -10 -10 -------- Run | Yrd Mat Sub Hostile Shots Fired 68 | . 34 34 Missed 21 | . 9 12 Damage Taken 804 | . 279 525 Core 272 | . 80 192 Absorbed by Shields . | . . . Core Remaining (%) 100 | 100 . . Volleys Fired 126 | . 25 101 Largest 2 | . 2 2 Hottest 115 | . 115 115 Shots Fired 238 | . 48 190 Gun 238 | . 48 190 Cannon . | . . . Launcher . | . . . Special . | . . . Kinetic 119 | . 13 106 Thermal 119 | . 35 84 Explosive . | . . . Electromagnetic . | . . . Robot Hit Streak 20 | . 13 20 Robot Miss Streak 3 | . 3 2 Penetration Max . | . . . Secondary Targets 2 | . 2 . Max Gunslinging Chain 1 | . 1 . Shots Hit Robots 75 | . 31 44 Core Hits 47 | . 26 21 Critical Kills . | . . . Critical Parts Destroyed . | . . . Critical Strikes 2 | . 2 . Burn 2 | . 2 . Melee Attacks . | . . . Impact . | . . . Slashing . | . . . Piercing . | . . . Sneak Attacks . | . . . Combat Hostiles . | . . . Follow-up Attacks . | . . . Damage Inflicted 1119 | . 394 725 Guns 1119 | . 394 725 Cannons . | . . . Explosions . | . . . Melee . | . . . Ramming . | . . . Kinetic 456 | . 54 402 Thermal 663 | . 340 323 Explosive . | . . . Electromagnetic . | . . . Impact . | . . . Slashing . | . . . Piercing . | . . . Highest Corruption 2 | . 2 2 Average Corruption 2 | . 2 2 Corruption Purged . | . . . Corruption Blocked . | . . . Effects 21 | . 4 17 Message Errors 6 | . 2 4 Matter Fused 2 | . 1 1 Heat Flow Errors 2 | . . 2 Energy Discharges 2 | . . 2 Parts Fused 1 | . . 1 Data Loss (major) 3 | . 1 2 Misfires 2 | . . 2 Weapon Failures 3 | . . 3 Overload Shots . | . . . Overflow Damage . | . . . Projectiles . | . . . Explosions . | . . . Melee . | . . . Knockbacks . | . . . Impact . | . . . Kinetic . | . . . Secondary . | . . . Self-Inflicted Damage . | . . . Shots . | . . . Rammed . | . . . Targets Rammed . | . . . Kicked . | . . . Crushed . | . . . Highest Temperature 395 | . 395 238 Average Temperature 140 | . 138 148 Received Heat Transfer 171 | . 132 39 Effects 2 | . 2 . Shutdowns 1 | . 1 . Interference 1 | . 1 . Siege Activations . | . . . Robots Corrupted . | . . . Combat Hostiles . | . . . Parts Fried . | . . . Impact Corruptions . | . . . Robots Melted . | . . . Combat Hostiles . | . . . Parts Melted 5 | . 3 2 Heat Transferred 1723 | . 910 813 Parts Sabotaged . | . . . Parts Stolen . | . . . Parts Stripped . | . . . Power Chain Reactions . | . . . Alert | -11 -10 -10 ------- Run | Yrd Mat Sub Peak Influence 335 | . 335 . Initial . | . . . Average 181 | . 193 . Maximum Alert Level 1 | . 1 . Low Security (%) 55 | 100 52 . Level 1 44 | . 47 . Level 2 . | . . . Level 3 . | . . . Level 4 . | . . . Level 5 . | . . . High Security . | . . . Max Security . | . . . Squads Dispatched 1 | . 1 . Investigation . | . . . Extermination . | . . . Reinforcement 1 | . 1 . Assault . | . . . Garrison . | . . . Intercept . | . . . Searches Triggered . | . . . Construction Impeded . | . . . Haulers Reinforced . | . . . Active Scanning Responses . | . . . Cargo Convoy Interrupts . | . . . Stealth | -11 -10 -10 --------- Run | Yrd Mat Sub Distress Signals 3 | . 3 . Communications Jammed . | . . . Distress Signals . | . . . Times Spotted 29 | . 20 9 Peak Tracking Total 5 | . 5 2 Tactical Retreats 3 | . 3 . Traps | -11 -10 -10 ------- Run | Yrd Mat Sub Traps Triggered 3 | . 2 1 Indirectly . | . . . Trap Hack Attempts . | . . . Triggered . | . . . Disarmed . | . . . Reprogrammed . | . . . Reused . | . . . Traps Extracted . | . . . Installed . | . . . Triggered . | . . . Machines | -11 -10 -10 ---------- Run | Yrd Mat Sub Machines Disabled . | . . . Max in Single Turn . | . . . Machines Repaired . | . . . Machines Dismantled . | . . . Machines Sabotaged . | . . . Overloaded Fab Kills . | . . . Hacking | -11 -10 -10 --------- Run | Yrd Mat Sub Machines Accessed . | . . . Terminals . | . . . Fabricators . | . . . Repair Stations . | . . . Recycling Units . | . . . Scanalyzers . | . . . Garrison Access . | . . . Total Hacks . | . . . Successful . | . . . Failed . | . . . Catastrophic . | . . . Database Lockouts . | . . . Manual . | . . . Terminals . | . . . Fabricators . | . . . Repair Stations . | . . . Recycling Units . | . . . Scanalyzers . | . . . Garrison Access . | . . . Terminal Hacks . | . . . Fabricator Hacks . | . . . Repair Station Hacks . | . . . Recycling Unit Hacks . | . . . Scanalyzer . | . . . Garrison Access Hacks . | . . . Unauthorized Hacks . | . . . Terminals . | . . . Fabricators . | . . . Repair Stations . | . . . Recycling Units . | . . . Scanalyzers . | . . . Garrison Access . | . . . Data Cores Recovered . | . . . Used . | . . . Hacking Detections . | . . . Full Trace Events . | . . . Feedback Events . | . . . Feedback Blocked . | . . . Robot Schematics Acquired . | . . . Robots Built . | . . . Authchips . | . . . Time . | . . . Total Robot Build Rating . | . . . Part Schematics Acquired . | . . . Parts Built . | . . . Authchips . | . . . Time . | . . . Total Part Build Rating . | . . . Parts Repaired . | . . . Time . | . . . Parts Recycled . | . . . Recycled Matter . | . . . Retrieved Matter . | . . . Retrieved Components . | . . . Parts Scanalyzed . | . . . Part Schematics Acquired . | . . . Parts Damaged . | . . . Bothacking | -11 -10 -10 ------------ Run | Yrd Mat Sub Used RIF Installer . | . . . Robots Hacked . | . . . Non-combat . | . . . Combat . | . . . Robot Hacks Applied . | . . . Relay Couplers Released . | . . . Fabnet Peak Effective % . | . . . Robots Rewired . | . . . Allies Hacked . | . . . Hacks Repelled . | . . . Allies | -11 -10 -10 -------- Run | Yrd Mat Sub Total Allies . | . . . Largest Group . | . . . Highest-Rated Group . | . . . Highest-Rated Ally . | . . . Total Orders . | . . . Ally Attacks . | . . . Total Damage . | . . . Kills . | . . . Allies Corrupted . | . . . Allies Melted . | . . . Intel | -11 -10 -10 ------- Run | Yrd Mat Sub Robot Analysis Total . | . . . Derelict Logs Recovered 1 | . . 1 Drone Launches . | . . . Drone Recoveries . | . . . Exploration | -11 -10 -10 ------------- Run | Yrd Mat Sub Turns Passed 1848 | 42 633 1173 Spaces Moved 1338 | 40 596 702 Core 3 | 3 . . Treads . | . . . Legs . | . . . Wheels 1335 | 37 596 702 Hover . | . . . Flight . | . . . Fastest Speed 50 | 50 80 95 Average Speed 101 | 77 86 114 Slowest Speed 125 | 80 95 125 Overloaded Moves . | . . . Propulsion Burnouts . | . . . Robots Hopped . | . . . Cave-ins Triggered . | . . . Exploration Rate (%) 40 | 3 93 24 Regions Visited 2 Branch Regions 1 Pre-discovered Areas . | . . . Known Exits Taken . | . . . Unknown Exits Taken 2 | 1 1 . Scrap Searched 8 | . . 8 Spaces Dug . | . . . Terrain Destroyed . | . . . Melee . | . . . Projectile . | . . . AOE . | . . . Terrain Rammed . | . . . Walls Destroyed . | . . . Machines Disabled . | . . . Actions | -11 -10 -10 --------- Run | Yrd Mat Sub Total 1593 | 47 663 883 Wait 91 | . 26 65 Move 1336 | 39 595 702 Hop . | . . . Pick Up 13 | 2 6 5 Fast Attach 10 | 6 2 2 Attach 2 | . 1 1 Detach 1 | . . 1 Swap 11 | . 7 4 Drop 3 | . 1 2 Fire 126 | . 25 101 Melee . | . . . Ram . | . . . Kick . | . . . Crush . | . . . Escape Stasis . | . . . Rewire . | . . . Trap . | . . . Miscellaneous . | . . . Route ------- -11/Scrapyard -10/Materials (discovered 5 exits: [*Mat x3] / [*Min] / [*Sub]) -10/Subcaves History --------- Turn | Location | Event 15 | -11/Scrapyard | Discovered new exit (range 16) 43 | -11/Scrapyard | Entered Materials 179 | -10/Materials | Discovered new exit (range 10) 245 | -10/Materials | Discovered new exit (range 8) 266 | -10/Materials | Discovered new exit (range 3) 304 | -10/Materials | Build established: Mutant 493 | -10/Materials | Discovered new exit (range 16) 668 | -10/Materials | Discovered new exit (range 8) 676 | -10/Materials | Entered Subcaves 717 | -10/Subcaves | Shifting Twisted Machinery released Piercing Trap 748 | -10/Subcaves | Core integrity fell below 50% 852 | -10/Subcaves | Core integrity fell below 20% 1496 | -10/Subcaves | Shifting Twisted Machinery released Spk. Treads 1665 | -10/Subcaves | Learned 8 Materials zone layouts 1849 | -10/Subcaves | Destroyed by 7C-BKH(R) with Subdweller Machine Gun Last Messages --------------- 01354_ Acquired Sub. Beam Cannon. 01358_ Discarded Med. Laser. 01358_ Dropped Barrage Gun. 01359_ Dropped Hvy. Assault Rifle. 01360_ System corrupted: Heat flow error (+228). 01384_ Acquired Barrage Gun. 01386_ Acquired Hvy. Assault Rifle. 01417_ System corrupted: Energy discharge (-77). 01444_ Acquired 33 matter. 01445_ Acquired 20 matter. 01451_ Acquired 51 matter. 01484_ Acquired 4 matter. Spk. Treads falls loose from the Twisted Machinery. 01620_ System corrupted: Energy discharge (-57). 01665_ Acquired derelict log, extracted data. Data stored: Materials zone layouts (x8). 01700_ System corrupted: FCS attempts to trigger Sub. Machine Gun. 01700_ System corrupted: Sub. Machine Gun misfires. 01828_ System corrupted: FCS attempts to trigger Barrage Gun. 01828_ System corrupted: Barrage Gun misfires. Map ----- +----------------------------------------------------+ | ?????????????????????????????????????????????????? | | ?????????????????????????????????????????????????? | | ?????????????????????????????????????????????????? | | ?????????????????????????????????????????????????? | | ?????????????????????????????????????????????????? | | ?????????????????????????????????????????????????? | | ?????????????????????????????????????????????????? | | ?????????????????????????????????????????????????? | | ?????????????????????????????????????????????????? | | ?????????????????????????????????????????????????? | | ?????????????????????????????????????????????????? | | ?????????????????????????????????????????????????? | | ???###???????????????????????????????????????????? | | ???#=#??????????????????????????#????????????????? | | ???# ##????????????###????????? ?????????????????? | | ???#&&######???????# ##??????? ??????????????????? | | ???#&& "##????### "##?????# ??????????????????? | | ???## """"##???# "" ####?# ???????????????????? | | ????# " ""##### "" # ## ????????????????????? | | ????# " "" ## ?????????????????????? | | ????# " """"" ""## "" ??????????????????????? | | ????# """"" " " ##"" #??????#???????????????? | | ????## # "###" "" #### #?###? ##??????????????? | | ?????#### ""### "" # ## ### ## #??????????????? | | ?????## ## """#####" R # #???????????????? | | ????## ## ""#??#" ## @# # #??????????????? | | ????# ### ""#??#""## #### # %#?????????????? | | ????# & #?## "#??# "" #?# #?????????????? | | ????##! ##??# "#??# #? % #????????????? | | ????## ##?## "#??## =#### #???????????? | | ???## ### " #???# ##??##### ####???????????? | | ???# "##???# #????????##??????????????? | | ???# "" ##???# ##???????????????????????? | | ???## ### ##??# #???????????????????????? | | ????##??### ##?# #???????????????????????? | | ??????????## #?## #???????????????????????? | | ??????####?# #??## * #???????????????????????? | | ???#### ### #??## ##???????????????????????? | | ???# ## #??# ##????????????????????????? | | ???## ## ##??# #?????????????????????????? | | ????# #???# #?????????????????????????? | | ???## ##???# ##?????????????????????????? | | ???# #???##[#??????????????????????????? | | ???# #######???# #??????????????????????????? | | ???# #?#######?## ##?????????????????????????? | | ???# ### #?## ####??##############??????? | | ???#### ### # #### ## ## # #??????? | | ??????## ### = #??????? | | ???????## #?# # #??????? | | ????##### ##?# # ## #### #??????? | +----------------------------------------------------+ Best States ------------- Heat Dissipation 25 Energy Generation 10 Energy Capacity 250 Matter Stores 300 Matter Capacity 300 Sight Range 16 Terrain Scan Density 10 Evasion (%) 44 Targeting Accuracy 6 Item Schematics ----------------- None Robot Schematics ------------------ None Fabricated ------------ Nothing Alien Tech Used ----------------- None Achievements -------------- None Challenges ------------ None Game ------ Seed LinearLinearReconfigurator Manual? 0 Play Time 00:11:11 Cumulative 59.4 hours Start 2024.11.02 @ 19:37:16 End 2024.11.02 @ 19:47:27 Sessions 1 Manual Loads 0 Difficulty Rogue Special Mode None Game No. 109 Rogue 109 Adventurer 0 Explorer 0 Win Type - Total 1 Types 1/0/0/0/0/0/0/0/0 Lore% 47 Gallery% 52 Achievement% 44 Wizard Run 0 Options --------- Layout 0 ASCII 0 Keyboard 1 Movement Numpad Keybinds 0 Fullscreen 2 Font 24/Terminus Map View 76x50 Zoom Use 0% Tactical HUD 1 Map Filters NONE Filters NONE Steam 1 RUN: 2a2ef0ae-c140-4675-8c70-415571a4b5a1